[Event "Early-Titled-Tuesday-Blitz-February-06-2024"]
[Site "Chess.com"]
[Date "2024.02.06"]
[Round "6"]
[White "Marcan2b"]
[Black "mjray79"]
[Result "1-0"]
[WhiteElo "3015"]
[BlackElo "2724"]
[TimeControl "180+1"]
[EndTime "9:08:43 PST"]
[Termination "Marcan2b won on time"]

1. d4 {[%clk 0:03:00.9]} 1... d5 {[%clk 0:02:57.3]} 2. Nf3 {[%clk 0:03:01.8]}
2... Nf6 {[%clk 0:02:57.2]} 3. Bf4 {[%clk 0:03:02.4]} 3... e6 {[%clk 0:02:55.2]}
4. Nbd2 {[%clk 0:03:01.9]} 4... Bd6 {[%clk 0:02:55.3]} 5. Bg5 {[%clk 0:03:02.2]}
5... Nbd7 {[%clk 0:02:52.9]} 6. e4 {[%clk 0:03:01.8]} 6... dxe4 {[%clk
0:02:52.9]} 7. Nxe4 {[%clk 0:03:02.7]} 7... Be7 {[%clk 0:02:53.6]} 8. Nxf6+
{[%clk 0:03:01.6]} 8... Nxf6 {[%clk 0:02:54.5]} 9. Bd3 {[%clk 0:02:59.9]} 9...
O-O {[%clk 0:02:49.9]} 10. Qe2 {[%clk 0:02:59.9]} 10... a6 {[%clk 0:02:42.2]}
11. O-O-O {[%clk 0:02:59]} 11... Rb8 {[%clk 0:02:42.1]} 12. Ne5 {[%clk
0:02:57.4]} 12... Bd7 {[%clk 0:02:38.1]} 13. h4 {[%clk 0:02:38.1]} 13... Nd5
{[%clk 0:02:23.5]} 14. Kb1 {[%clk 0:02:29]} 14... Be8 {[%clk 0:02:00.3]} 15. Bc1
{[%clk 0:02:21.6]} 15... f6 {[%clk 0:01:55.2]} 16. Ng4 {[%clk 0:02:17.3]} 16...
Bf7 {[%clk 0:01:55]} 17. h5 {[%clk 0:02:16.8]} 17... b5 {[%clk 0:01:48.9]} 18.
Rh3 {[%clk 0:02:07.2]} 18... Nb4 {[%clk 0:01:43.2]} 19. Rg3 {[%clk 0:02:01.5]}
19... Kh8 {[%clk 0:01:43.5]} 20. h6 {[%clk 0:01:58.4]} 20... g6 {[%clk
0:01:41.7]} 21. Rf3 {[%clk 0:01:42.9]} 21... Nxd3 {[%clk 0:01:29.7]} 22. Rdxd3
{[%clk 0:01:41.5]} 22... Bg8 {[%clk 0:01:25]} 23. b3 {[%clk 0:01:38.5]} 23...
Qd5 {[%clk 0:01:19.4]} 24. Bb2 {[%clk 0:01:36.6]} 24... Qh5 {[%clk 0:01:11.6]}
25. d5 {[%clk 0:01:35.6]} 25... e5 {[%clk 0:00:53.1]} 26. Nxe5 {[%clk
0:01:18.1]} 26... Rbe8 {[%clk 0:00:52.6]} 27. g4 {[%clk 0:00:58.3]} 27... Qxh6
{[%clk 0:00:50.7]} 28. Rde3 {[%clk 0:00:55.7]} 28... Qh1+ {[%clk 0:00:43.9]} 29.
Qe1 {[%clk 0:00:50.7]} 29... Qxe1+ {[%clk 0:00:43.7]} 30. Rxe1 {[%clk
0:00:51.6]} 30... Bb4 {[%clk 0:00:43.5]} 31. Ree3 {[%clk 0:00:47]} 31... fxe5
{[%clk 0:00:36.3]} 32. Rxf8 {[%clk 0:00:38.2]} 32... Bxf8 {[%clk 0:00:36.8]} 33.
Bxe5+ {[%clk 0:00:22.5]} 33... Rxe5 {[%clk 0:00:37]} 34. Rxe5 {[%clk 0:00:23.4]}
34... Kg7 {[%clk 0:00:37.1]} 35. c4 {[%clk 0:00:22.8]} 35... Bf7 {[%clk
0:00:33.1]} 36. Kc2 {[%clk 0:00:21.8]} 36... Bd6 {[%clk 0:00:32.7]} 37. Re3
{[%clk 0:00:20.4]} 37... g5 {[%clk 0:00:26.6]} 38. Kd3 {[%clk 0:00:20.2]} 38...
Bc5 {[%clk 0:00:25.4]} 39. Re5 {[%clk 0:00:19.2]} 39... Bg6+ {[%clk 0:00:25.9]}
40. Kc3 {[%clk 0:00:18.9]} 40... Kf6 {[%clk 0:00:26.5]} 41. Re6+ {[%clk
0:00:18.6]} 41... Kf7 {[%clk 0:00:25]} 42. Rc6 {[%clk 0:00:18.6]} 42... Bd6
{[%clk 0:00:22.3]} 43. c5 {[%clk 0:00:18.3]} 43... Be5+ {[%clk 0:00:22]} 44. Kb4
{[%clk 0:00:16.9]} 44... Bf4 {[%clk 0:00:15.3]} 45. Rxa6 {[%clk 0:00:11.4]}
45... Be4 {[%clk 0:00:15.5]} 46. d6 {[%clk 0:00:10.2]} 46... Bd2+ {[%clk
0:00:13]} 47. Ka3 {[%clk 0:00:09.4]} 47... cxd6 {[%clk 0:00:07.7]} 48. Rxd6
{[%clk 0:00:09]} 48... Bc3 {[%clk 0:00:06.4]} 49. b4 {[%clk 0:00:08.2]} 49...
Be5 {[%clk 0:00:03.6]} 50. Rd1 {[%clk 0:00:07.2]} 50... Bf3 {[%clk 0:00:03.2]}
51. Re1 {[%clk 0:00:07.1]} 51... Bd4 {[%clk 0:00:02.1]} 52. Kb3 {[%clk
0:00:06.6]} 52... Bxg4 {[%clk 0:00:02.7]} 53. a4 {[%clk 0:00:06.8]} 53... Be6+
{[%clk 0:00:02.9]} 54. Ka3 {[%clk 0:00:07.2]} 54... bxa4 {[%clk 0:00:03.2]} 55.
Kxa4 {[%clk 0:00:08.1]} 55... Bxf2 {[%clk 0:00:03.4]} 56. Rf1 {[%clk 0:00:08.1]}
56... g4 {[%clk 0:00:02.8]} 57. Rxf2+ {[%clk 0:00:08.4]} 57... Kg6 {[%clk
0:00:03.5]} 58. c6 {[%clk 0:00:07.7]} 58... h5 {[%clk 0:00:02.3]} 59. b5 {[%clk
0:00:06.4]} 59... h4 {[%clk 0:00:02.6]} 60. b6 {[%clk 0:00:07]} 60... g3 {[%clk
0:00:03.3]} 61. Re2 {[%clk 0:00:05.8]} 61... Kf5 {[%clk 0:00:01.1]} 62. b7
{[%clk 0:00:05.2]} 1-0

[Event "Early-Titled-Tuesday-Blitz-February-06-2024"]
[Site "Chess.com"]
[Date "2024.02.06"]
[Round "6"]
[White "Nuvas"]
[Black "yobdc"]
[Result "0-1"]
[WhiteElo "2772"]
[BlackElo "2601"]
[TimeControl "180+1"]
[EndTime "9:08:46 PST"]
[Termination "yobdc won by resignation"]

1. d4 {[%clk 0:03:00.2]} 1... Nf6 {[%clk 0:02:58.9]} 2. c4 {[%clk 0:03:00.4]}
2... g6 {[%clk 0:02:59.3]} 3. g3 {[%clk 0:02:59.8]} 3... Bg7 {[%clk 0:02:58.9]}
4. Bg2 {[%clk 0:03:00.4]} 4... O-O {[%clk 0:02:59]} 5. Nc3 {[%clk 0:03:00.6]}
5... c5 {[%clk 0:02:59.3]} 6. Nf3 {[%clk 0:02:58.6]} 6... cxd4 {[%clk
0:02:58.9]} 7. Nxd4 {[%clk 0:02:58.6]} 7... Qc7 {[%clk 0:02:59.3]} 8. O-O {[%clk
0:02:57.6]} 8... Qxc4 {[%clk 0:02:57.3]} 9. Ncb5 {[%clk 0:02:49.6]} 9... Na6
{[%clk 0:02:46.2]} 10. b3 {[%clk 0:02:47.1]} 10... Qc5 {[%clk 0:02:36.3]} 11.
Ba3 {[%clk 0:02:46.9]} 11... Qe5 {[%clk 0:02:36]} 12. f4 {[%clk 0:01:59.7]}
12... Qe3+ {[%clk 0:02:26.9]} 13. Kh1 {[%clk 0:01:59.8]} 13... Ng4 {[%clk
0:02:09.5]} 14. Rf3 {[%clk 0:01:24.5]} 14... Qxf3 {[%clk 0:01:42.3]} 15. Bxf3
{[%clk 0:01:24.7]} 15... Nf2+ {[%clk 0:01:42.5]} 16. Kg2 {[%clk 0:01:25.2]}
16... Nxd1 {[%clk 0:01:43.2]} 17. Rxd1 {[%clk 0:01:25.7]} 17... d6 {[%clk
0:01:42.5]} 18. e4 {[%clk 0:01:26.1]} 18... Rd8 {[%clk 0:01:24.1]} 19. Nc3
{[%clk 0:01:17.5]} 19... Be6 {[%clk 0:01:06.2]} 20. g4 {[%clk 0:01:09]} 20...
Rac8 {[%clk 0:01:06.3]} 21. Bb2 {[%clk 0:01:09.3]} 21... Nc5 {[%clk 0:01:01.2]}
22. f5 {[%clk 0:01:07.6]} 22... Bd7 {[%clk 0:01:01]} 23. Nd5 {[%clk 0:01:04.8]}
23... Kf8 {[%clk 0:01:00.8]} 24. g5 {[%clk 0:00:55.1]} 24... Be5 {[%clk
0:00:57.5]} 25. f6 {[%clk 0:00:53.7]} 25... exf6 {[%clk 0:00:55.5]} 26. Nxf6
{[%clk 0:00:48.1]} 26... Bc6 {[%clk 0:00:52.5]} 27. Nxh7+ {[%clk 0:00:44.2]}
27... Kg7 {[%clk 0:00:52.7]} 28. Nf6 {[%clk 0:00:44.7]} 28... Rh8 {[%clk
0:00:48.3]} 29. h3 {[%clk 0:00:43.8]} 29... Rh4 {[%clk 0:00:48.4]} 30. Ng4
{[%clk 0:00:37.6]} 30... Bxe4 {[%clk 0:00:43.2]} 31. Rd2 {[%clk 0:00:20.5]}
31... Bxf3+ {[%clk 0:00:40.2]} 32. Nxf3 {[%clk 0:00:21.4]} 32... Bxb2 {[%clk
0:00:37.7]} 33. Nxh4 {[%clk 0:00:21.2]} 33... Bc1 {[%clk 0:00:31.8]} 34. Rxd6
{[%clk 0:00:19.5]} 34... Bxg5 {[%clk 0:00:31.8]} 35. Nf3 {[%clk 0:00:19.9]}
35... Be7 {[%clk 0:00:30.7]} 36. Rd2 {[%clk 0:00:20.3]} 36... Ne4 {[%clk
0:00:30]} 37. Re2 {[%clk 0:00:20.8]} 37... f5 {[%clk 0:00:30.3]} 38. Nf2 {[%clk
0:00:21.4]} 38... Bf6 {[%clk 0:00:24.4]} 39. Nxe4 {[%clk 0:00:19.6]} 39... fxe4
{[%clk 0:00:25.3]} 40. Rxe4 {[%clk 0:00:18.4]} 40... Rc2+ {[%clk 0:00:25.4]} 41.
Kg3 {[%clk 0:00:18.9]} 41... Rxa2 {[%clk 0:00:26]} 42. h4 {[%clk 0:00:18.3]}
42... Rb2 {[%clk 0:00:25.2]} 43. Re3 {[%clk 0:00:18.8]} 43... a5 {[%clk
0:00:24.2]} 44. Rd3 {[%clk 0:00:19.2]} 44... b5 {[%clk 0:00:19.2]} 45. Rd7+
{[%clk 0:00:18.3]} 45... Kh6 {[%clk 0:00:19.4]} 46. Rd6 {[%clk 0:00:17.5]} 46...
Kg7 {[%clk 0:00:19.6]} 47. Rd7+ {[%clk 0:00:17.6]} 47... Kf8 {[%clk 0:00:20]}
48. Rd6 {[%clk 0:00:16]} 48... Ke7 {[%clk 0:00:20.2]} 49. Rd3 {[%clk 0:00:16.9]}
49... a4 {[%clk 0:00:19.9]} 50. bxa4 {[%clk 0:00:16.8]} 50... bxa4 {[%clk
0:00:20.8]} 51. Ra3 {[%clk 0:00:16.6]} 51... Rb4 {[%clk 0:00:19.5]} 52. Kg2
{[%clk 0:00:13.7]} 52... Bb2 {[%clk 0:00:19.5]} 53. Re3+ {[%clk 0:00:13.3]}
53... Kf8 {[%clk 0:00:18.2]} 54. Ne1 {[%clk 0:00:12.6]} 54... a3 {[%clk
0:00:17.9]} 55. Nc2 {[%clk 0:00:12.8]} 55... a2 {[%clk 0:00:16.1]} 56. Rf3+
{[%clk 0:00:10.8]} 56... Kg7 {[%clk 0:00:16]} 57. Rf1 {[%clk 0:00:09.9]} 57...
Ra4 {[%clk 0:00:14.7]} 58. Rf3 {[%clk 0:00:06.6]} 58... Rxh4 {[%clk 0:00:11.3]}
59. Rb3 {[%clk 0:00:06.3]} 59... a1=Q {[%clk 0:00:10.9]} 60. Nxa1 {[%clk
0:00:06.3]} 60... Bxa1 {[%clk 0:00:11.8]} 61. Rb7+ {[%clk 0:00:07]} 61... Kh6
{[%clk 0:00:12.1]} 62. Rb1 {[%clk 0:00:07.6]} 62... Bf6 {[%clk 0:00:12.2]} 63.
Kg3 {[%clk 0:00:07.9]} 63... Ra4 {[%clk 0:00:12]} 64. Rh1+ {[%clk 0:00:07.9]}
64... Kg7 {[%clk 0:00:11.9]} 65. Rb1 {[%clk 0:00:08.5]} 65... Be5+ {[%clk
0:00:12.3]} 66. Kg2 {[%clk 0:00:08.6]} 66... Kf6 {[%clk 0:00:12.7]} 67. Rb5
{[%clk 0:00:08.5]} 67... Kf5 {[%clk 0:00:12.8]} 68. Rb7 {[%clk 0:00:08.6]} 68...
g5 {[%clk 0:00:13.2]} 69. Rb3 {[%clk 0:00:08.6]} 69... g4 {[%clk 0:00:13.2]} 70.
Rd3 {[%clk 0:00:08.6]} 70... Ra2+ {[%clk 0:00:13.3]} 71. Kg1 {[%clk 0:00:09.1]}
71... Ke4 {[%clk 0:00:13.8]} 72. Rb3 {[%clk 0:00:09.6]} 72... Bf4 {[%clk
0:00:14]} 73. Rb4+ {[%clk 0:00:09.8]} 73... Kf3 {[%clk 0:00:14.2]} 74. Kf1
{[%clk 0:00:07.4]} 74... Ra1+ {[%clk 0:00:14.1]} 0-1

[Event "Early-Titled-Tuesday-Blitz-February-06-2024"]
[Site "Chess.com"]
[Date "2024.02.06"]
[Round "6"]
[White "Cambek64"]
[Black "Leonid_Starozhilov"]
[Result "0-1"]
[WhiteElo "2511"]
[BlackElo "2717"]
[TimeControl "180+1"]
[EndTime "9:08:48 PST"]
[Termination "Leonid_Starozhilov won on time"]

1. Nf3 {[%clk 0:02:54.9]} 1... Nf6 {[%clk 0:02:59.1]} 2. b3 {[%clk 0:02:54.8]}
2... d5 {[%clk 0:02:54.6]} 3. Bb2 {[%clk 0:02:55.1]} 3... Bg4 {[%clk 0:02:55.1]}
4. Ne5 {[%clk 0:02:52.3]} 4... Bf5 {[%clk 0:02:40.9]} 5. d3 {[%clk 0:02:48.8]}
5... e6 {[%clk 0:02:38]} 6. Nd2 {[%clk 0:02:48.9]} 6... h6 {[%clk 0:02:32.1]} 7.
g3 {[%clk 0:02:47.3]} 7... Nbd7 {[%clk 0:02:32.3]} 8. Ndf3 {[%clk 0:02:44.6]}
8... c6 {[%clk 0:02:30.6]} 9. Bg2 {[%clk 0:02:44]} 9... a5 {[%clk 0:02:30.2]}
10. a3 {[%clk 0:02:42.9]} 10... Be7 {[%clk 0:02:26.9]} 11. O-O {[%clk 0:02:41]}
11... O-O {[%clk 0:02:26.9]} 12. c4 {[%clk 0:02:41.2]} 12... Bh7 {[%clk
0:02:22]} 13. Qc2 {[%clk 0:02:38.8]} 13... Nxe5 {[%clk 0:02:14.4]} 14. Nxe5
{[%clk 0:02:37.7]} 14... Nd7 {[%clk 0:02:12.6]} 15. Nxd7 {[%clk 0:02:37.2]}
15... Qxd7 {[%clk 0:02:12.5]} 16. c5 {[%clk 0:02:22]} 16... Rfe8 {[%clk
0:01:58.6]} 17. Rfc1 {[%clk 0:02:17.9]} 17... Bf8 {[%clk 0:01:55.9]} 18. b4
{[%clk 0:02:17.1]} 18... e5 {[%clk 0:01:43.1]} 19. e4 {[%clk 0:02:16.3]} 19...
d4 {[%clk 0:01:13.5]} 20. f4 {[%clk 0:02:10.6]} 20... f5 {[%clk 0:01:03.4]} 21.
exf5 {[%clk 0:01:49]} 21... Qxf5 {[%clk 0:00:56.7]} 22. Be4 {[%clk 0:01:47.9]}
22... Qg4 {[%clk 0:00:52.6]} 23. fxe5 {[%clk 0:01:29.5]} 23... Bxe4 {[%clk
0:00:48.7]} 24. dxe4 {[%clk 0:01:30]} 24... Rxe5 {[%clk 0:00:44.4]} 25. Re1
{[%clk 0:01:03.3]} 25... Rae8 {[%clk 0:00:40.5]} 26. Bxd4 {[%clk 0:00:53.9]}
26... Rxe4 {[%clk 0:00:39.2]} 27. Bf2 {[%clk 0:00:53.5]} 27... axb4 {[%clk
0:00:31.4]} 28. axb4 {[%clk 0:00:52.4]} 28... Rxe1+ {[%clk 0:00:26]} 29. Rxe1
{[%clk 0:00:50]} 29... Rxe1+ {[%clk 0:00:26]} 30. Bxe1 {[%clk 0:00:50.6]} 30...
Be7 {[%clk 0:00:19.5]} 31. Qd3 {[%clk 0:00:28.4]} 31... Bf6 {[%clk 0:00:16.3]}
32. Kg2 {[%clk 0:00:27.2]} 32... h5 {[%clk 0:00:14.1]} 33. h3 {[%clk 0:00:24.5]}
33... Qe6 {[%clk 0:00:14.4]} 34. Bd2 {[%clk 0:00:21.4]} 34... Kf7 {[%clk
0:00:12.1]} 35. Qf3 {[%clk 0:00:13]} 35... g6 {[%clk 0:00:10.2]} 36. Qd3 {[%clk
0:00:12.8]} 36... Ke7 {[%clk 0:00:08.8]} 37. Qf3 {[%clk 0:00:09.3]} 37... Qa2
{[%clk 0:00:07.7]} 38. Qe4+ {[%clk 0:00:08.5]} 38... Kf7 {[%clk 0:00:07.7]} 39.
Qd3 {[%clk 0:00:08]} 39... Bg5 {[%clk 0:00:04.7]} 40. Qd7+ {[%clk 0:00:08.6]}
40... Be7 {[%clk 0:00:04.5]} 41. Qd3 {[%clk 0:00:08.2]} 41... Qe6 {[%clk
0:00:04.2]} 42. Qf3+ {[%clk 0:00:07]} 42... Ke8 {[%clk 0:00:04.5]} 43. Qd3
{[%clk 0:00:06.7]} 43... Bf6 {[%clk 0:00:03.8]} 44. Qf3 {[%clk 0:00:06.3]} 44...
Kd7 {[%clk 0:00:03.7]} 45. Qf4 {[%clk 0:00:05.4]} 45... Kc8 {[%clk 0:00:02.6]}
46. Qf3 {[%clk 0:00:05]} 46... Be7 {[%clk 0:00:02.9]} 47. Qd3 {[%clk 0:00:05.4]}
47... Kb8 {[%clk 0:00:02.6]} 48. Bc3 {[%clk 0:00:04.9]} 48... Kc8 {[%clk
0:00:02.5]} 49. Qd4 {[%clk 0:00:04.6]} 49... Qf5 {[%clk 0:00:01.7]} 50. Qd2
{[%clk 0:00:03.4]} 50... Qe6 {[%clk 0:00:01.8]} 51. Qd3 {[%clk 0:00:03]} 51...
Bd8 {[%clk 0:00:02.1]} 52. Qd2 {[%clk 0:00:02.5]} 52... Bc7 {[%clk 0:00:02.8]}
53. Qd3 {[%clk 0:00:02.5]} 53... Qd7 {[%clk 0:00:03]} 54. Qxd7+ {[%clk
0:00:02.2]} 54... Kxd7 {[%clk 0:00:03.9]} 55. Kf3 {[%clk 0:00:02.3]} 55... Ke6
{[%clk 0:00:04.4]} 56. g4 {[%clk 0:00:02]} 56... Kd5 {[%clk 0:00:04.7]} 57. gxh5
{[%clk 0:00:01.1]} 57... gxh5 {[%clk 0:00:05.6]} 58. Ke3 {[%clk 0:00:01.2]}
58... Kc4 {[%clk 0:00:05.9]} 59. Be1 {[%clk 0:00:01.3]} 59... Be5 {[%clk
0:00:05.4]} 0-1

[Event "Early-Titled-Tuesday-Blitz-February-06-2024"]
[Site "Chess.com"]
[Date "2024.02.06"]
[Round "6"]
[White "xberli"]
[Black "Janosik"]
[Result "1/2-1/2"]
[WhiteElo "2570"]
[BlackElo "2861"]
[TimeControl "180+1"]
[EndTime "9:08:53 PST"]
[Termination "Game drawn by repetition"]

1. d4 {[%clk 0:03:00.9]} 1... d5 {[%clk 0:02:59.6]} 2. c4 {[%clk 0:02:50.5]}
2... e6 {[%clk 0:03:00]} 3. Nf3 {[%clk 0:02:49.6]} 3... Nf6 {[%clk 0:03:00.2]}
4. g3 {[%clk 0:02:48.2]} 4... Bb4+ {[%clk 0:02:59.4]} 5. Bd2 {[%clk 0:02:44.2]}
5... Bd6 {[%clk 0:02:59.4]} 6. Bg2 {[%clk 0:02:43.4]} 6... c6 {[%clk 0:03:00.1]}
7. O-O {[%clk 0:02:43.4]} 7... Nbd7 {[%clk 0:03:00.7]} 8. Qc2 {[%clk 0:02:41.4]}
8... O-O {[%clk 0:03:01]} 9. Nc3 {[%clk 0:02:40]} 9... dxc4 {[%clk 0:03:00.7]}
10. a4 {[%clk 0:02:39.3]} 10... e5 {[%clk 0:02:59.5]} 11. dxe5 {[%clk
0:02:37.5]} 11... Nxe5 {[%clk 0:03:00.4]} 12. Rad1 {[%clk 0:02:33.5]} 12...
Nxf3+ {[%clk 0:03:00.3]} 13. Bxf3 {[%clk 0:02:31.9]} 13... Qe7 {[%clk
0:02:56.3]} 14. Bg5 {[%clk 0:02:28.4]} 14... Be5 {[%clk 0:02:53.7]} 15. Bg2
{[%clk 0:02:20.2]} 15... h6 {[%clk 0:02:51.6]} 16. Be3 {[%clk 0:02:13]} 16...
Be6 {[%clk 0:02:44]} 17. Bd4 {[%clk 0:02:02.9]} 17... Bxd4 {[%clk 0:02:37.2]}
18. Rxd4 {[%clk 0:02:03.8]} 18... Rad8 {[%clk 0:02:37.6]} 19. Rfd1 {[%clk
0:02:01.4]} 19... Rxd4 {[%clk 0:02:37.8]} 20. Rxd4 {[%clk 0:02:02.3]} 20... Rd8
{[%clk 0:02:38.2]} 21. Qd2 {[%clk 0:01:59.2]} 21... Rxd4 {[%clk 0:02:36.6]} 22.
Qxd4 {[%clk 0:02:00.1]} 22... Qb4 {[%clk 0:02:36.9]} 23. Qd8+ {[%clk 0:01:13.3]}
23... Kh7 {[%clk 0:02:34.8]} 24. Qd2 {[%clk 0:01:13.2]} 24... Nd5 {[%clk
0:02:10.7]} 25. Be4+ {[%clk 0:01:07.7]} 25... Kg8 {[%clk 0:02:04.5]} 26. Kg2
{[%clk 0:01:01.3]} 26... a5 {[%clk 0:01:58.3]} 27. f4 {[%clk 0:00:54.3]} 27...
Qc5 {[%clk 0:01:43.8]} 28. Bf3 {[%clk 0:00:35.2]} 28... Ne3+ {[%clk 0:01:10.7]}
29. Kh1 {[%clk 0:00:31.7]} 29... Bd5 {[%clk 0:00:55.1]} 30. Ne4 {[%clk
0:00:16.3]} 30... Qb6 {[%clk 0:00:31.9]} 31. g4 {[%clk 0:00:11.5]} 31... Kf8
{[%clk 0:00:27]} 32. h3 {[%clk 0:00:11]} 32... Ke7 {[%clk 0:00:26.6]} 33. Nc3
{[%clk 0:00:09.2]} 33... Bxf3+ {[%clk 0:00:18.3]} 34. exf3 {[%clk 0:00:10.1]}
34... f6 {[%clk 0:00:16.4]} 35. f5 {[%clk 0:00:09.2]} 35... Qc5 {[%clk
0:00:12.8]} 36. Qe2 {[%clk 0:00:08.6]} 36... Qe5 {[%clk 0:00:12.7]} 37. Ne4
{[%clk 0:00:08.2]} 37... Nd5 {[%clk 0:00:10.8]} 38. Qxc4 {[%clk 0:00:07.4]}
38... Qxb2 {[%clk 0:00:09.4]} 39. Qc5+ {[%clk 0:00:07.3]} 39... Ke8 {[%clk
0:00:09]} 40. Qd6 {[%clk 0:00:06.1]} 40... Qc1+ {[%clk 0:00:08.1]} 41. Kg2
{[%clk 0:00:05.4]} 41... Ne3+ {[%clk 0:00:05.5]} 42. Kf2 {[%clk 0:00:04.7]}
42... Nd1+ {[%clk 0:00:05.9]} 43. Kg2 {[%clk 0:00:03.9]} 43... Qb2+ {[%clk
0:00:05.3]} 44. Kh1 {[%clk 0:00:03.2]} 44... Nf2+ {[%clk 0:00:04.9]} 45. Nxf2
{[%clk 0:00:03.1]} 45... Qxf2 {[%clk 0:00:05.8]} 46. Qb8+ {[%clk 0:00:01.7]}
46... Kd7 {[%clk 0:00:06.1]} 47. Qxb7+ {[%clk 0:00:02.4]} 47... Kd6 {[%clk
0:00:07]} 48. Qb8+ {[%clk 0:00:02.8]} 48... Kd5 {[%clk 0:00:07.2]} 49. Qd8+
{[%clk 0:00:03]} 49... Kc4 {[%clk 0:00:07.5]} 50. Qd1 {[%clk 0:00:02.7]} 50...
Kb4 {[%clk 0:00:06.7]} 51. Qc1 {[%clk 0:00:02]} 51... Qxf3+ {[%clk 0:00:06]} 52.
Kh2 {[%clk 0:00:01.9]} 52... Qf2+ {[%clk 0:00:06.5]} 53. Kh1 {[%clk 0:00:02.2]}
53... Qf3+ {[%clk 0:00:07]} 54. Kh2 {[%clk 0:00:02.8]} 54... Qc3 {[%clk
0:00:07.7]} 55. Qb1+ {[%clk 0:00:02.3]} 55... Kxa4 {[%clk 0:00:08.3]} 56. Qa2+
{[%clk 0:00:02.6]} 56... Kb5 {[%clk 0:00:08.2]} 57. Qb1+ {[%clk 0:00:03.3]}
57... Qb4 {[%clk 0:00:08.7]} 58. Qf1+ {[%clk 0:00:03.7]} 58... Qc4 {[%clk
0:00:08.9]} 59. Qb1+ {[%clk 0:00:03.8]} 59... Ka6 {[%clk 0:00:09.5]} 60. Qb8
{[%clk 0:00:03.3]} 60... a4 {[%clk 0:00:09.9]} 61. Qa8+ {[%clk 0:00:02.9]} 61...
Kb5 {[%clk 0:00:10.8]} 62. Qb7+ {[%clk 0:00:03.2]} 62... Kc5 {[%clk 0:00:11.3]}
63. Qxg7 {[%clk 0:00:04.1]} 63... Qc2+ {[%clk 0:00:11.4]} 64. Kg3 {[%clk
0:00:04.1]} 64... Qc3+ {[%clk 0:00:12]} 65. Kg2 {[%clk 0:00:04.5]} 65... a3
{[%clk 0:00:11.9]} 66. Qxh6 {[%clk 0:00:03.9]} 66... a2 {[%clk 0:00:11.4]} 67.
Qf8+ {[%clk 0:00:04]} 67... Kb5 {[%clk 0:00:09.8]} 68. Qb8+ {[%clk 0:00:04.1]}
68... Kc5 {[%clk 0:00:09]} 69. Qf8+ {[%clk 0:00:04]} 69... Kb6 {[%clk
0:00:08.3]} 70. Qb8+ {[%clk 0:00:04.1]} 70... Kc5 {[%clk 0:00:08.5]} 71. Qf8+
{[%clk 0:00:04.3]} 1/2-1/2